[Event "Betsys MČR v online bleskovém šachu 2021"]
[Site "Chess.com"]
[Date "2021.04.17"]
[Round "5"]
[White "CrisBenton4"]
[Black "Hapinka"]
[Result "1-0"]
[WhiteElo "1454"]
[BlackElo "1836"]
[TimeControl "180+1"]
[EndTime "9:46:55 PDT"]
[Termination "Uživatel CrisBenton4 zvítězil po vzdání soupeře"]

1. Nf3 {[%clk 0:03:00.9]} 1... Nf6 {[%clk 0:02:59.3]} 2. g3 {[%clk 0:03:00.2]}
2... g6 {[%clk 0:02:59.8]} 3. Bg2 {[%clk 0:02:59.5]} 3... Bg7 {[%clk 0:03:00.5]}
4. O-O {[%clk 0:02:59.8]} 4... d6 {[%clk 0:03:01.1]} 5. d4 {[%clk 0:03:00.2]}
5... O-O {[%clk 0:03:01.2]} 6. c4 {[%clk 0:03:00.7]} 6... c6 {[%clk 0:03:01.7]}
7. Nc3 {[%clk 0:03:00.7]} 7... Qa5 {[%clk 0:03:01.3]} 8. a3 {[%clk 0:02:52.7]}
8... Qh5 {[%clk 0:03:00.2]} 9. e4 {[%clk 0:02:41.9]} 9... Bg4 {[%clk 0:02:47.9]}
10. Qd3 {[%clk 0:02:33.9]} 10... Nbd7 {[%clk 0:02:34.7]} 11. Bg5 {[%clk
0:02:24.5]} 11... h6 {[%clk 0:02:27]} 12. Bxf6 {[%clk 0:02:24]} 12... Nxf6
{[%clk 0:02:23.8]} 13. e5 {[%clk 0:02:17.2]} 13... dxe5 {[%clk 0:02:17.3]} 14.
Nxe5 {[%clk 0:02:13.7]} 14... Bh3 {[%clk 0:02:10.2]} 15. Bf3 {[%clk 0:02:01.3]}
15... Bxf1 {[%clk 0:01:50.7]} 16. Rxf1 {[%clk 0:01:47.9]} 16... Qh3 {[%clk
0:01:39.7]} 17. Bg2 {[%clk 0:01:42.9]} 17... Qe6 {[%clk 0:01:29.8]} 18. f4
{[%clk 0:01:32.8]} 18... Rfd8 {[%clk 0:01:25.7]} 19. Re1 {[%clk 0:01:27.3]}
19... Nd7 {[%clk 0:01:13.2]} 20. Qe2 {[%clk 0:01:12]} 20... Nxe5 {[%clk
0:01:11.6]} 21. dxe5 {[%clk 0:01:09.4]} 21... Qf5 {[%clk 0:01:07]} 22. Be4
{[%clk 0:01:05.7]} 22... Qe6 {[%clk 0:01:00.3]} 23. Bg2 {[%clk 0:01:04.9]} 23...
Rd4 {[%clk 0:00:57]} 24. b3 {[%clk 0:00:59.2]} 24... Rad8 {[%clk 0:00:56]} 25.
Bf1 {[%clk 0:00:30.7]} 25... Rd2 {[%clk 0:00:53.8]} 26. Qe3 {[%clk 0:00:26.3]}
26... b5 {[%clk 0:00:48.4]} 27. cxb5 {[%clk 0:00:23]} 27... Qxb3 {[%clk
0:00:45.3]} 28. bxc6 {[%clk 0:00:09.6]} 28... Rc2 {[%clk 0:00:43.7]} 29. Rc1
{[%clk 0:00:09.4]} 29... Rxc1 {[%clk 0:00:39.3]} 30. Qxc1 {[%clk 0:00:08.7]}
30... Rd1 {[%clk 0:00:37.3]} 31. Nxd1 {[%clk 0:00:06.7]} 1-0

[Event "Betsys MČR v online bleskovém šachu 2021"]
[Site "Chess.com"]
[Date "2021.04.17"]
[Round "5"]
[White "JakubPulpan"]
[Black "Maldaj"]
[Result "1-0"]
[WhiteElo "2721"]
[BlackElo "2408"]
[TimeControl "180+1"]
[EndTime "9:46:56 PDT"]
[Termination "Uživatel JakubPulpan zvítězil matem"]

1. Nf3 {[%clk 0:02:59.8]} 1... d5 {[%clk 0:02:59.8]} 2. b3 {[%clk 0:02:58.8]}
2... Nf6 {[%clk 0:02:57.1]} 3. Bb2 {[%clk 0:02:59.2]} 3... e6 {[%clk 0:02:55.5]}
4. e3 {[%clk 0:02:58.9]} 4... c6 {[%clk 0:02:46.7]} 5. c4 {[%clk 0:02:58.3]}
5... Nbd7 {[%clk 0:02:46.4]} 6. Nc3 {[%clk 0:02:57.6]} 6... Bd6 {[%clk
0:02:45.9]} 7. d4 {[%clk 0:02:57.3]} 7... Qe7 {[%clk 0:02:46]} 8. Be2 {[%clk
0:02:57.4]} 8... O-O {[%clk 0:02:45.5]} 9. O-O {[%clk 0:02:57.3]} 9... dxc4
{[%clk 0:02:44.8]} 10. bxc4 {[%clk 0:02:49.4]} 10... e5 {[%clk 0:02:44.7]} 11.
c5 {[%clk 0:02:31]} 11... Bc7 {[%clk 0:02:44.5]} 12. a4 {[%clk 0:01:50.9]} 12...
Re8 {[%clk 0:02:43.8]} 13. a5 {[%clk 0:01:50.4]} 13... a6 {[%clk 0:02:42]} 14.
Nd2 {[%clk 0:01:44.2]} 14... Nf8 {[%clk 0:02:33.5]} 15. Nc4 {[%clk 0:01:38.1]}
15... e4 {[%clk 0:02:23.7]} 16. Ba3 {[%clk 0:01:25.4]} 16... Ng6 {[%clk
0:02:17.8]} 17. Nd6 {[%clk 0:01:25.6]} 17... Nh4 {[%clk 0:02:10.1]} 18. g3
{[%clk 0:01:04.4]} 18... Nf5 {[%clk 0:01:57.7]} 19. Nxe8 {[%clk 0:01:01.1]}
19... Qxe8 {[%clk 0:01:57.3]} 20. d5 {[%clk 0:00:56.5]} 20... Be5 {[%clk
0:01:50.9]} 21. Bb4 {[%clk 0:00:45.5]} 21... Bxc3 {[%clk 0:01:50.2]} 22. Bxc3
{[%clk 0:00:45.7]} 22... Nxd5 {[%clk 0:01:50.5]} 23. Qc2 {[%clk 0:00:32.1]}
23... Qe7 {[%clk 0:01:44.5]} 24. Bb2 {[%clk 0:00:14.6]} 24... Be6 {[%clk
0:01:19.8]} 25. Qxe4 {[%clk 0:00:14]} 25... Qxc5 {[%clk 0:01:19]} 26. Rfc1
{[%clk 0:00:10.7]} 26... Qe7 {[%clk 0:01:11.4]} 27. Bg4 {[%clk 0:00:07.5]} 27...
Nf6 {[%clk 0:01:05.1]} 28. Qa4 {[%clk 0:00:03.2]} 28... Nxe3 {[%clk 0:00:55]}
29. Bxe6 {[%clk 0:00:02.3]} 29... Qxe6 {[%clk 0:00:55]} 30. Bxf6 {[%clk
0:00:02.7]} 30... Qxf6 {[%clk 0:00:51.3]} 31. fxe3 {[%clk 0:00:02.8]} 31... Qf3
{[%clk 0:00:51.3]} 32. Qf4 {[%clk 0:00:03]} 32... Qe2 {[%clk 0:00:51]} 33. Rf1
{[%clk 0:00:03.6]} 33... Rf8 {[%clk 0:00:50.5]} 34. Rad1 {[%clk 0:00:04.1]}
34... Qb5 {[%clk 0:00:51.4]} 35. Qxf7+ {[%clk 0:00:04.1]} 35... Rxf7 {[%clk
0:00:51.1]} 36. Rd8+ {[%clk 0:00:04.4]} 36... Rf8 {[%clk 0:00:52]} 37. Rdxf8#
{[%clk 0:00:05.3]} 1-0

[Event "Betsys MČR v online bleskovém šachu 2021"]
[Site "Chess.com"]
[Date "2021.04.17"]
[Round "5"]
[White "Bagr92"]
[Black "Tah_na_g12"]
[Result "1-0"]
[WhiteElo "1589"]
[BlackElo "1178"]
[TimeControl "180+1"]
[EndTime "9:46:56 PDT"]
[Termination "Uživatel Bagr92 zvítězil po vzdání soupeře"]

1. e4 {[%clk 0:02:58.3]} 1... e5 {[%clk 0:02:59.9]} 2. Nc3 {[%clk 0:02:58.7]}
2... Bc5 {[%clk 0:02:53.2]} 3. f4 {[%clk 0:02:53.8]} 3... exf4 {[%clk
0:02:51.1]} 4. d4 {[%clk 0:02:51.2]} 4... Bb4 {[%clk 0:02:49.5]} 5. Bxf4 {[%clk
0:02:48.5]} 5... Qf6 {[%clk 0:02:47.1]} 6. Qf3 {[%clk 0:02:42.8]} 6... Qxd4
{[%clk 0:02:42.5]} 7. Rd1 {[%clk 0:02:28.4]} 7... Qc5 {[%clk 0:02:36.7]} 8. Rd5
{[%clk 0:02:20.4]} 8... Qc6 {[%clk 0:02:30.6]} 9. Bb5 {[%clk 0:02:10.3]} 9...
Qe6 {[%clk 0:02:17]} 10. Re5 {[%clk 0:02:06.2]} 10... Qxe5 {[%clk 0:02:12.8]}
11. Bxe5 {[%clk 0:02:02.7]} 11... c6 {[%clk 0:02:12.6]} 12. Bc4 {[%clk 0:02:02]}
12... f6 {[%clk 0:02:05.7]} 13. Bd4 {[%clk 0:01:56.7]} 13... Bxc3+ {[%clk
0:02:03.9]} 14. Bxc3 {[%clk 0:01:56]} 14... b5 {[%clk 0:02:02.7]} 15. Bb3 {[%clk
0:01:54.6]} 15... a5 {[%clk 0:02:01.6]} 16. a3 {[%clk 0:01:51.2]} 16... a4
{[%clk 0:02:00.1]} 17. Ba2 {[%clk 0:01:45.4]} 17... Ne7 {[%clk 0:01:53.7]} 18.
Ne2 {[%clk 0:01:42.2]} 18... Na6 {[%clk 0:01:47.1]} 19. O-O {[%clk 0:01:39.9]}
19... Ng6 {[%clk 0:01:45.5]} 20. e5 {[%clk 0:01:37.7]} 20... Nxe5 {[%clk
0:01:42.2]} 21. Bxe5 {[%clk 0:01:37]} 21... fxe5 {[%clk 0:01:43.1]} 22. Qf7+
{[%clk 0:01:33.4]} 22... Kd8 {[%clk 0:01:42.8]} 23. Qxg7 {[%clk 0:01:34]} 23...
Re8 {[%clk 0:01:41.5]} 24. Rf8 {[%clk 0:01:32.1]} 24... Rxf8 {[%clk 0:01:40.9]}
25. Qxf8+ {[%clk 0:01:33]} 25... Kc7 {[%clk 0:01:40.6]} 26. Qe7 {[%clk
0:01:27.3]} 26... h6 {[%clk 0:01:33.7]} 27. Qxe5+ {[%clk 0:01:23.9]} 27... Kb6
{[%clk 0:01:31.4]} 28. c4 {[%clk 0:01:17.7]} 28... Bb7 {[%clk 0:01:27.7]} 29. b4
{[%clk 0:01:04.9]} 29... axb3 {[%clk 0:01:26.4]} 30. Bxb3 {[%clk 0:01:04.5]}
30... bxc4 {[%clk 0:01:26.3]} 31. Bxc4 {[%clk 0:01:01.2]} 31... Nc5 {[%clk
0:01:25.3]} 32. Qc3 {[%clk 0:00:45.9]} 32... Ne4 {[%clk 0:01:20.3]} 33. Qb4+
{[%clk 0:00:45.5]} 33... Kc7 {[%clk 0:01:17.8]} 34. Bd3 {[%clk 0:00:32.1]} 34...
Nd6 {[%clk 0:01:13.4]} 35. Nd4 {[%clk 0:00:27]} 35... Rf8 {[%clk 0:01:11.2]} 36.
a4 {[%clk 0:00:25.6]} 36... c5 {[%clk 0:00:51.7]} 37. Qxc5+ {[%clk 0:00:24.1]}
37... Bc6 {[%clk 0:00:49.3]} 38. Nb5+ {[%clk 0:00:19.7]} 38... Kb7 {[%clk
0:00:48.5]} 39. Nxd6+ {[%clk 0:00:19.3]} 39... Kc7 {[%clk 0:00:46.8]} 40. Nb5+
{[%clk 0:00:19.9]} 1-0

[Event "Betsys MČR v online bleskovém šachu 2021"]
[Site "Chess.com"]
[Date "2021.04.17"]
[Round "5"]
[White "catanist19"]
[Black "kalcs"]
[Result "0-1"]
[WhiteElo "1738"]
[BlackElo "2077"]
[TimeControl "180+1"]
[EndTime "9:46:59 PDT"]
[Termination "Uživatel kalcs zvítězil po vzdání soupeře"]

1. d4 {[%clk 0:02:59.4]} 1... Nf6 {[%clk 0:02:59.1]} 2. c4 {[%clk 0:02:58.7]}
2... g6 {[%clk 0:02:58.7]} 3. Nc3 {[%clk 0:02:58.6]} 3... Bg7 {[%clk 0:02:58.5]}
4. e4 {[%clk 0:02:58.5]} 4... d6 {[%clk 0:02:58.6]} 5. f4 {[%clk 0:02:57.3]}
5... O-O {[%clk 0:02:58.1]} 6. e5 {[%clk 0:02:53.4]} 6... dxe5 {[%clk
0:02:37.9]} 7. fxe5 {[%clk 0:02:52.2]} 7... Ne8 {[%clk 0:02:32.3]} 8. h4 {[%clk
0:02:45.4]} 8... c5 {[%clk 0:02:30.2]} 9. h5 {[%clk 0:02:44]} 9... cxd4 {[%clk
0:02:26.5]} 10. hxg6 {[%clk 0:02:40]} 10... fxg6 {[%clk 0:02:24.2]} 11. Nd5
{[%clk 0:02:25.9]} 11... Bxe5 {[%clk 0:02:21.3]} 12. Bh6 {[%clk 0:02:19.8]}
12... Rf7 {[%clk 0:02:16.2]} 13. Nf3 {[%clk 0:02:12.3]} 13... Bg3+ {[%clk
0:02:12]} 14. Kd2 {[%clk 0:02:06.4]} 14... e6 {[%clk 0:01:57.3]} 15. Ng5 {[%clk
0:02:01.2]} 15... Rf2+ {[%clk 0:01:48.6]} 16. Kd3 {[%clk 0:01:57.4]} 16... exd5
{[%clk 0:01:48.2]} 17. Nxh7 {[%clk 0:01:43.9]} 17... Bf5+ {[%clk 0:01:47.6]} 18.
Kxd4 {[%clk 0:01:42]} 18... dxc4+ {[%clk 0:01:47.3]} 19. Kxc4 {[%clk 0:01:29.4]}
19... Rc2+ {[%clk 0:01:35.7]} 20. Qxc2 {[%clk 0:01:14.1]} 20... Bxc2 {[%clk
0:01:34.6]} 21. Kc3 {[%clk 0:01:07]} 21... Qc7+ {[%clk 0:01:32.6]} 22. Bc4+
{[%clk 0:01:04.8]} 22... Kh8 {[%clk 0:01:13.4]} 23. Raf1 {[%clk 0:00:51.1]}
23... Be5+ {[%clk 0:01:08.7]} 24. Kd2 {[%clk 0:00:46.8]} 24... Bf5 {[%clk
0:00:46.5]} 25. b3 {[%clk 0:00:34.6]} 25... Qxh7 {[%clk 0:00:34.7]} 26. Bf4
{[%clk 0:00:23]} 26... Bxf4+ {[%clk 0:00:32.2]} 27. Kc3 {[%clk 0:00:09.5]} 27...
Qxh1 {[%clk 0:00:29.5]} 28. Rxh1+ {[%clk 0:00:07.8]} 28... Kg7 {[%clk
0:00:29.3]} 0-1

[Event "Betsys MČR v online bleskovém šachu 2021"]
[Site "Chess.com"]
[Date "2021.04.17"]
[Round "5"]
[White "jsulc"]
[Black "OlifantCZ"]
[Result "0-1"]
[WhiteElo "2070"]
[BlackElo "2288"]
[TimeControl "180+1"]
[EndTime "9:47:01 PDT"]
[Termination "Uživatel OlifantCZ zvítězil na čas"]

1. d4 {[%clk 0:03:00.9]} 1... Nf6 {[%clk 0:02:59.5]} 2. c4 {[%clk 0:02:49]} 2...
g6 {[%clk 0:02:59.2]} 3. Nc3 {[%clk 0:02:46.5]} 3... Bg7 {[%clk 0:02:59.2]} 4.
e4 {[%clk 0:02:46.9]} 4... O-O {[%clk 0:02:58.1]} 5. Be3 {[%clk 0:02:47.3]} 5...
d6 {[%clk 0:02:57.7]} 6. h3 {[%clk 0:02:47.6]} 6... b6 {[%clk 0:02:47.4]} 7. g4
{[%clk 0:02:46.3]} 7... c5 {[%clk 0:02:44.7]} 8. d5 {[%clk 0:02:44.8]} 8... e6
{[%clk 0:02:42.3]} 9. Nge2 {[%clk 0:02:36.6]} 9... exd5 {[%clk 0:02:42.1]} 10.
exd5 {[%clk 0:02:35.9]} 10... Na6 {[%clk 0:02:39.4]} 11. Ng3 {[%clk 0:02:31.4]}
11... Nc7 {[%clk 0:02:36.2]} 12. Be2 {[%clk 0:02:21]} 12... a6 {[%clk
0:02:34.2]} 13. a4 {[%clk 0:02:19.8]} 13... Rb8 {[%clk 0:02:33.5]} 14. Qd2
{[%clk 0:02:08.3]} 14... Bd7 {[%clk 0:02:30]} 15. Bf4 {[%clk 0:01:50]} 15...
Nfe8 {[%clk 0:02:01.6]} 16. Nge4 {[%clk 0:01:39.4]} 16... Qe7 {[%clk 0:01:58.2]}
17. O-O {[%clk 0:01:33.6]} 17... f5 {[%clk 0:01:36.2]} 18. Bg5 {[%clk
0:01:05.4]} 18... Qf7 {[%clk 0:01:31.4]} 19. Ng3 {[%clk 0:00:55.9]} 19... f4
{[%clk 0:01:16.3]} 20. Nge4 {[%clk 0:00:53.3]} 20... h6 {[%clk 0:01:16.4]} 21.
Bd3 {[%clk 0:00:44.7]} 21... hxg5 {[%clk 0:01:08.5]} 22. Nxg5 {[%clk 0:00:44.8]}
22... Qf6 {[%clk 0:01:09]} 23. Nce4 {[%clk 0:00:43.4]} 23... Qd8 {[%clk
0:01:05.8]} 24. Rfe1 {[%clk 0:00:33.3]} 24... b5 {[%clk 0:01:05]} 25. axb5
{[%clk 0:00:31.3]} 25... axb5 {[%clk 0:01:04.7]} 26. Rab1 {[%clk 0:00:15.6]}
26... bxc4 {[%clk 0:01:04.2]} 27. Bxc4 {[%clk 0:00:15.7]} 27... Nb5 {[%clk
0:01:01]} 28. Ne6 {[%clk 0:00:10.1]} 28... Bxe6 {[%clk 0:00:57.6]} 29. dxe6
{[%clk 0:00:10.3]} 29... Qe7 {[%clk 0:00:58]} 30. Qd5 {[%clk 0:00:07.7]} 30...
Nd4 {[%clk 0:00:53.8]} 31. Ng5 {[%clk 0:00:06.4]} 31... Nc7 {[%clk 0:00:41.7]}
32. Qe4 {[%clk 0:00:05.1]} 32... Rf6 {[%clk 0:00:37.1]} 0-1

[Event "Betsys MČR v online bleskovém šachu 2021"]
[Site "Chess.com"]
[Date "2021.04.17"]
[Round "5"]
[White "Classemence"]
[Black "AdeeJa"]
[Result "1-0"]
[WhiteElo "1929"]
[BlackElo "1614"]
[TimeControl "180+1"]
[EndTime "9:47:03 PDT"]
[Termination "Uživatel Classemence zvítězil po vzdání soupeře"]

1. e4 {[%clk 0:03:00.9]} 1... c5 {[%clk 0:02:59.7]} 2. Nc3 {[%clk 0:02:58.4]}
2... Nc6 {[%clk 0:02:58.5]} 3. Nf3 {[%clk 0:02:57]} 3... g6 {[%clk 0:02:58]} 4.
Bb5 {[%clk 0:02:56.6]} 4... Bg7 {[%clk 0:02:57.6]} 5. O-O {[%clk 0:02:54.8]}
5... Nd4 {[%clk 0:02:57.1]} 6. Bc4 {[%clk 0:02:52.3]} 6... e6 {[%clk 0:02:52.8]}
7. d3 {[%clk 0:02:50.8]} 7... Ne7 {[%clk 0:02:52.5]} 8. a4 {[%clk 0:02:47.3]}
8... O-O {[%clk 0:02:51.2]} 9. h3 {[%clk 0:02:46.1]} 9... d5 {[%clk 0:02:49.3]}
10. exd5 {[%clk 0:02:46.1]} 10... exd5 {[%clk 0:02:49.1]} 11. Ba2 {[%clk
0:02:46.3]} 11... Qd6 {[%clk 0:02:37]} 12. Nxd4 {[%clk 0:02:36.6]} 12... cxd4
{[%clk 0:02:29.7]} 13. Ne2 {[%clk 0:02:14.7]} 13... Nf5 {[%clk 0:02:20.8]} 14.
Bf4 {[%clk 0:02:12.1]} 14... Qc6 {[%clk 0:02:09.4]} 15. Ng3 {[%clk 0:02:02.8]}
15... Qd7 {[%clk 0:02:06.6]} 16. Qd2 {[%clk 0:01:50.4]} 16... Nh4 {[%clk
0:02:02.5]} 17. Rfe1 {[%clk 0:01:31.2]} 17... h5 {[%clk 0:01:59.3]} 18. Bh6
{[%clk 0:01:27.3]} 18... Nxg2 {[%clk 0:01:47.1]} 19. Kxg2 {[%clk 0:01:24]} 19...
Qxh3+ {[%clk 0:01:46.9]} 20. Kg1 {[%clk 0:01:23.2]} 20... h4 {[%clk 0:01:46.4]}
21. Bxg7 {[%clk 0:01:08.4]} 21... Kxg7 {[%clk 0:01:45.8]} 22. Ne2 {[%clk
0:00:41.7]} 22... Qg4+ {[%clk 0:01:36.7]} 23. Kh2 {[%clk 0:00:34.7]} 23... Qh3+
{[%clk 0:01:36.4]} 24. Kg1 {[%clk 0:00:33.6]} 24... Bg4 {[%clk 0:01:19.8]} 25.
Nf4 {[%clk 0:00:30.9]} 25... Qf3 {[%clk 0:01:18.5]} 26. Bxd5 {[%clk 0:00:27.8]}
26... Qh3 {[%clk 0:01:01.6]} 27. Nxh3 {[%clk 0:00:27.2]} 27... Bxh3 {[%clk
0:01:01.5]} 28. Qf4 {[%clk 0:00:26.4]} 28... b6 {[%clk 0:00:55]} 29. Bxa8 {[%clk
0:00:25.2]} 1-0

[Event "Betsys MČR v online bleskovém šachu 2021"]
[Site "Chess.com"]
[Date "2021.04.17"]
[Round "5"]
[White "Miky2610"]
[Black "bezzuton"]
[Result "0-1"]
[WhiteElo "1823"]
[BlackElo "1485"]
[TimeControl "180+1"]
[EndTime "9:47:03 PDT"]
[Termination "Uživatel bezzuton zvítězil po vzdání soupeře"]

1. c4 {[%clk 0:03:00.9]} 1... c5 {[%clk 0:02:59.2]} 2. Nc3 {[%clk 0:03:01]} 2...
e6 {[%clk 0:02:56.2]} 3. g3 {[%clk 0:03:00.9]} 3... d5 {[%clk 0:02:53.3]} 4.
cxd5 {[%clk 0:02:59.5]} 4... exd5 {[%clk 0:02:52.1]} 5. d3 {[%clk 0:02:59.6]}
5... Nf6 {[%clk 0:02:50.1]} 6. Bg2 {[%clk 0:02:59.4]} 6... Nc6 {[%clk
0:02:47.4]} 7. Nf3 {[%clk 0:02:58.6]} 7... d4 {[%clk 0:02:37.1]} 8. Nb1 {[%clk
0:02:41]} 8... Qa5+ {[%clk 0:02:28.5]} 9. Bd2 {[%clk 0:02:37.6]} 9... Qb6 {[%clk
0:02:26.5]} 10. Qb3 {[%clk 0:02:30.8]} 10... Qxb3 {[%clk 0:02:19.7]} 11. axb3
{[%clk 0:02:30.9]} 11... Nd5 {[%clk 0:02:17.7]} 12. O-O {[%clk 0:02:24.5]} 12...
h6 {[%clk 0:02:10]} 13. Rc1 {[%clk 0:02:22.2]} 13... g5 {[%clk 0:01:54]} 14.
Nxd4 {[%clk 0:02:18.7]} 14... Nxd4 {[%clk 0:01:48.5]} 15. Kf1 {[%clk 0:01:47.8]}
15... Nxb3 {[%clk 0:01:40.3]} 16. Bxd5 {[%clk 0:01:43.9]} 16... Nxa1 {[%clk
0:01:39.8]} 17. Nc3 {[%clk 0:01:39.3]} 17... Be6 {[%clk 0:01:30.6]} 18. Rxa1
{[%clk 0:01:36.9]} 18... Bxd5 {[%clk 0:01:27.8]} 19. Nxd5 {[%clk 0:01:36.4]}
19... Kd8 {[%clk 0:01:03.8]} 20. Bc3 {[%clk 0:01:35.5]} 20... Rg8 {[%clk
0:00:58.9]} 21. Nf6 {[%clk 0:01:32.6]} 21... Rg6 {[%clk 0:00:55.3]} 22. Nd5
{[%clk 0:01:22.5]} 22... Rd6 {[%clk 0:00:48.9]} 23. e4 {[%clk 0:01:19.5]} 23...
Kd7 {[%clk 0:00:27.5]} 24. b4 {[%clk 0:01:15]} 24... cxb4 {[%clk 0:00:23.1]} 25.
Bxb4 {[%clk 0:01:14.9]} 25... Rxd5 {[%clk 0:00:22.7]} 26. exd5 {[%clk
0:01:07.9]} 26... Bxb4 {[%clk 0:00:19.5]} 27. Rb1 {[%clk 0:01:06.9]} 27... a5
{[%clk 0:00:18.2]} 28. Ke2 {[%clk 0:01:05.4]} 28... Kd6 {[%clk 0:00:19.1]} 29.
Ke3 {[%clk 0:01:04.9]} 29... Kxd5 {[%clk 0:00:19.4]} 30. d4 {[%clk 0:01:00]}
30... Re8+ {[%clk 0:00:20.3]} 31. Kd3 {[%clk 0:00:59.7]} 31... Re4 {[%clk
0:00:20.2]} 32. Kc2 {[%clk 0:00:55.9]} 32... Rxd4 {[%clk 0:00:20.3]} 33. Rc1
{[%clk 0:00:53.7]} 33... Rc4+ {[%clk 0:00:21.2]} 34. Kb1 {[%clk 0:00:52]} 34...
Rxc1+ {[%clk 0:00:22.1]} 35. Kxc1 {[%clk 0:00:52.2]} 35... Kc4 {[%clk 0:00:23]}
36. Kb2 {[%clk 0:00:52.2]} 36... a4 {[%clk 0:00:21.6]} 37. f4 {[%clk 0:00:51.6]}
37... b5 {[%clk 0:00:22.5]} 38. fxg5 {[%clk 0:00:50.7]} 38... hxg5 {[%clk
0:00:22.6]} 39. h4 {[%clk 0:00:51]} 39... gxh4 {[%clk 0:00:22.1]} 40. gxh4
{[%clk 0:00:51.2]} 40... Bd2 {[%clk 0:00:23]} 41. h5 {[%clk 0:00:51.4]} 41...
Bh6 {[%clk 0:00:22.8]} 42. Kc2 {[%clk 0:00:50.6]} 42... f5 {[%clk 0:00:23.7]}
43. Kb1 {[%clk 0:00:50.6]} 43... f4 {[%clk 0:00:23.9]} 44. Kc2 {[%clk
0:00:50.9]} 44... f3 {[%clk 0:00:22.1]} 45. Kd1 {[%clk 0:00:51.1]} 45... a3
{[%clk 0:00:23]} 46. Ke1 {[%clk 0:00:50.8]} 46... a2 {[%clk 0:00:23.9]} 47. Kf2
{[%clk 0:00:50.8]} 47... a1=Q {[%clk 0:00:24.8]} 0-1

[Event "Betsys MČR v online bleskovém šachu 2021"]
[Site "Chess.com"]
[Date "2021.04.17"]
[Round "5"]
[White "mysacek1414"]
[Black "Tlaskin"]
[Result "1-0"]
[WhiteElo "1852"]
[BlackElo "1364"]
[TimeControl "180+1"]
[EndTime "9:47:03 PDT"]
[Termination "Uživatel mysacek1414 zvítězil na čas"]

1. Nf3 {[%clk 0:03:00.9]} 1... c5 {[%clk 0:02:58.7]} 2. g3 {[%clk 0:03:00.6]}
2... Nc6 {[%clk 0:02:57.9]} 3. Bg2 {[%clk 0:03:01.1]} 3... b6 {[%clk 0:02:56]}
4. d3 {[%clk 0:03:00]} 4... Bb7 {[%clk 0:02:55.6]} 5. O-O {[%clk 0:03:00.6]}
5... Nf6 {[%clk 0:02:53.7]} 6. e4 {[%clk 0:03:01]} 6... Rb8 {[%clk 0:02:44.8]}
7. Nbd2 {[%clk 0:02:54.6]} 7... e6 {[%clk 0:02:41.5]} 8. Re1 {[%clk 0:02:53.9]}
8... Be7 {[%clk 0:02:35.1]} 9. Nf1 {[%clk 0:02:52.7]} 9... O-O {[%clk
0:02:33.2]} 10. e5 {[%clk 0:02:52.6]} 10... Nd5 {[%clk 0:02:24.4]} 11. c4 {[%clk
0:02:52.2]} 11... Nc7 {[%clk 0:02:17.7]} 12. h4 {[%clk 0:02:52.2]} 12... f6
{[%clk 0:02:05.2]} 13. N1h2 {[%clk 0:02:40.2]} 13... fxe5 {[%clk 0:02:00.1]} 14.
Nxe5 {[%clk 0:02:31]} 14... Nxe5 {[%clk 0:01:46.5]} 15. Bxb7 {[%clk 0:02:28.8]}
15... Nxc4 {[%clk 0:01:12.5]} 16. Be4 {[%clk 0:02:17.9]} 16... Nd6 {[%clk
0:00:51.2]} 17. Bg2 {[%clk 0:02:00.7]} 17... Bxh4 {[%clk 0:00:46.4]} 18. gxh4
{[%clk 0:01:55.3]} 18... Qxh4 {[%clk 0:00:45.1]} 19. Be3 {[%clk 0:01:48.1]}
19... Nf5 {[%clk 0:00:41.5]} 20. Qg4 {[%clk 0:01:47.5]} 20... Qf6 {[%clk
0:00:28.6]} 21. Bg5 {[%clk 0:01:42.6]} 21... Qxb2 {[%clk 0:00:22.3]} 22. Nf3
{[%clk 0:01:32.2]} 22... Nd5 {[%clk 0:00:20.4]} 23. Nh4 {[%clk 0:01:18.9]} 23...
Nf6 {[%clk 0:00:19.5]} 24. Qh3 {[%clk 0:01:09.3]} 24... Nxh4 {[%clk 0:00:16.9]}
25. Qxh4 {[%clk 0:01:09.4]} 25... Qd4 {[%clk 0:00:15]} 26. Qxd4 {[%clk
0:01:07.3]} 26... cxd4 {[%clk 0:00:14.8]} 27. Rac1 {[%clk 0:01:06.4]} 27... Rbc8
{[%clk 0:00:14.2]} 28. Rxc8 {[%clk 0:01:04.9]} 28... Rxc8 {[%clk 0:00:14.2]} 29.
Rc1 {[%clk 0:01:05.8]} 29... Rxc1+ {[%clk 0:00:12.7]} 30. Bxc1 {[%clk
0:01:06.7]} 30... h5 {[%clk 0:00:11.6]} 31. Bb2 {[%clk 0:01:05.2]} 31... Kf7
{[%clk 0:00:10.7]} 32. Bxd4 {[%clk 0:01:04.6]} 32... g5 {[%clk 0:00:09]} 33. Be5
{[%clk 0:01:04.4]} 33... Nd5 {[%clk 0:00:06.9]} 34. Bb8 {[%clk 0:00:59.9]} 34...
a6 {[%clk 0:00:05.3]} 35. Bxd5 {[%clk 0:00:50]} 35... exd5 {[%clk 0:00:04.6]}
36. Kg2 {[%clk 0:00:50.9]} 36... Ke6 {[%clk 0:00:04.4]} 37. Kf3 {[%clk
0:00:50.6]} 37... h4 {[%clk 0:00:01.8]} 38. Bc7 {[%clk 0:00:49.2]} 38... b5
{[%clk 0:00:01]} 39. Kg4 {[%clk 0:00:49.3]} 1-0